[Event "Titled Tuesday Blitz August 1 Late 2023"]
[White "Prado Lobo, Jonas"]
[Black "Bazeev, German"]
[WhiteFideId "32050666"]
[BlackFideId "24119350"]
[WhiteElo "2525"]
[BlackElo "2814"]
[Result "1-0"]
[Round "6"]
[TimeControl "180+1"]
[Date "2023.08.01"]
[WhiteClock "0:00:04"]
[BlackClock "0:00:14"]
[Board "39"]

1. e4 {[%clk 0:03:00]}  g6 {[%clk 0:03:00]} 2. d4 {[%clk 0:02:59]}  Bg7 {[%clk 0:03:01]} 3. Nf3 {[%clk 0:02:59]}  d6 {[%clk 0:03:01]} 4. Be2 {[%clk 0:02:53]}  Nf6 {[%clk 0:02:58]} 5. Nc3 {[%clk 0:02:53]}  Nc6 {[%clk 0:02:57]} 6. h3 {[%clk 0:02:50]}  O-O {[%clk 0:02:57]} 7. O-O {[%clk 0:02:49]}  e5 {[%clk 0:02:58]} 8. dxe5 {[%clk 0:02:42]}  Nxe5 {[%clk 0:02:59]} 9. Bg5 {[%clk 0:02:40]}  Nxf3+ {[%clk 0:02:57]} 10. Bxf3 {[%clk 0:02:41]}  h6 {[%clk 0:02:57]} 11. Bh4 {[%clk 0:02:41]}  Be6 {[%clk 0:02:57]} 12. Nd5 {[%clk 0:02:38]}  Bxd5 {[%clk 0:02:57]} 13. exd5 {[%clk 0:02:39]}  Qd7 {[%clk 0:02:55]} 14. c3 {[%clk 0:02:35]}  Rfe8 {[%clk 0:02:50]} 15. Qb3 {[%clk 0:02:34]}  Qc8 {[%clk 0:02:46]} 16. Rfe1 {[%clk 0:02:34]}  Rxe1+ {[%clk 0:02:42]} 17. Rxe1 {[%clk 0:02:35]}  Nd7 {[%clk 0:02:42]} 18. Bg4 {[%clk 0:02:21]}  f5 {[%clk 0:02:38]} 19. Bd1 {[%clk 0:02:20]}  g5 {[%clk 0:02:38]} 20. Bg3 {[%clk 0:02:20]}  f4 {[%clk 0:02:38]} 21. Bh2 {[%clk 0:02:20]}  Ne5 {[%clk 0:02:38]} 22. Bg4 {[%clk 0:01:39]}  Nxg4 {[%clk 0:02:33]} 23. hxg4 {[%clk 0:01:40]}  Qxg4 {[%clk 0:02:33]} 24. Qxb7 {[%clk 0:01:38]}  Qc8 {[%clk 0:02:16]} 25. Qc6 {[%clk 0:01:34]}  Rb8 {[%clk 0:02:02]} 26. b4 {[%clk 0:01:32]}  Qd8 {[%clk 0:01:51]} 27. f3 {[%clk 0:01:22]}  Qf8 {[%clk 0:01:10]} 28. Kh1 {[%clk 0:01:15]}  Be5 {[%clk 0:01:04]} 29. Bg1 {[%clk 0:01:06]}  Re8 {[%clk 0:00:55]} 30. Bxa7 {[%clk 0:01:02]}  g4 {[%clk 0:00:56]} 31. fxg4 {[%clk 0:00:55]}  f3 {[%clk 0:00:53]} 32. Rf1 {[%clk 0:00:50]}  Qe7 {[%clk 0:00:47]} 33. Rxf3 {[%clk 0:00:43]}  Qh4+ {[%clk 0:00:43]} 34. Rh3 {[%clk 0:00:35]}  Qe1+ {[%clk 0:00:38]} 35. Bg1 {[%clk 0:00:35]}  Rf8 {[%clk 0:00:39]} 36. Qxc7 {[%clk 0:00:25]}  Qe4 {[%clk 0:00:32]} 37. Rxh6 {[%clk 0:00:18]}  Bg7 {[%clk 0:00:33]} 38. Rh3 {[%clk 0:00:12]}  Qxd5 {[%clk 0:00:32]} 39. Qe7 {[%clk 0:00:10]}  Qxa2 {[%clk 0:00:26]} 40. Qxd6 {[%clk 0:00:09]}  Rf1 {[%clk 0:00:26]} 41. Qd8+ {[%clk 0:00:08]}  Rf8 {[%clk 0:00:26]} 42. Qd1 {[%clk 0:00:06]}  Qe6 {[%clk 0:00:24]} 43. Re3 {[%clk 0:00:05]}  Qh6+ {[%clk 0:00:24]} 44. Rh3 {[%clk 0:00:05]}  Qg6 {[%clk 0:00:25]} 45. Qe2 {[%clk 0:00:05]}  Re8 {[%clk 0:00:25]} 46. Qc4+ {[%clk 0:00:05]}  Re6 {[%clk 0:00:18]} 47. Qc8+ {[%clk 0:00:05]}  Bf8 {[%clk 0:00:17]} 48. Qd7 {[%clk 0:00:03]}  Re7 {[%clk 0:00:17]} 49. Qd5+ {[%clk 0:00:03]}  Re6 {[%clk 0:00:18]} 50. Bd4 {[%clk 0:00:03]}  Kf7 {[%clk 0:00:14]} 51. Qf5+ {[%clk 0:00:02]}  Qxf5 {[%clk 0:00:14]} 52. gxf5 {[%clk 0:00:03]}  Re1+ {[%clk 0:00:14]} 53. Kh2 {[%clk 0:00:04]}  Bd6+ {[%clk 0:00:15]} 54. g3 {[%clk 0:00:04]}  Re2+ {[%clk 0:00:16]} 55. Kg1 {[%clk 0:00:04]}  Rc2 {[%clk 0:00:15]} 56. g4 {[%clk 0:00:04]}  Bf4 {[%clk 0:00:14]} 57. Rh7+ {[%clk 0:00:04]}  Kg8 {[%clk 0:00:15]} 58. Rg7+ {[%clk 0:00:05]}  Kf8 {[%clk 0:00:15]} 59. Rd7 {[%clk 0:00:04]}  Bh2+ {[%clk 0:00:14]} 60. Kf1 {[%clk 0:00:04]}  Bf4 {[%clk 0:00:15]} 61. b5 {[%clk 0:00:04]}  Rb2 {[%clk 0:00:15]} 62. b6 {[%clk 0:00:05]}  Ke8 {[%clk 0:00:16]} 63. Rh7 {[%clk 0:00:04]}  Kf8 {[%clk 0:00:15]} 64. b7 {[%clk 0:00:05]}  Kg8 {[%clk 0:00:15]} 65. Rd7 {[%clk 0:00:05]}  Kf8 {[%clk 0:00:15]} 66. f6 {[%clk 0:00:05]}  Ke8 {[%clk 0:00:16]} 67. Re7+ {[%clk 0:00:06]}  Kf8 {[%clk 0:00:14]} 68. Bc5 {[%clk 0:00:04]} 1-0


[Site "https://www.chess.com"]

[Event "Titled Tuesday Blitz August 1 Late 2023"]
[White "Estrada Nieto, Julian"]
[Black "Matinian, Nikita"]
[WhiteFideId "5101018"]
[BlackFideId "24129100"]
[WhiteElo "2520"]
[BlackElo "2721"]
[Result "1-0"]
[Round "6"]
[TimeControl "180+1"]
[Date "2023.08.01"]
[WhiteClock "0:00:27"]
[BlackClock "0:00:30"]
[Board "41"]

1. e4 {[%clk 0:03:00]}  c5 {[%clk 0:03:00]} 2. Nf3 {[%clk 0:03:01]}  d6 {[%clk 0:03:00]} 3. Bb5+ {[%clk 0:03:01]}  Nd7 {[%clk 0:03:00]} 4. d4 {[%clk 0:03:00]}  cxd4 {[%clk 0:03:01]} 5. Qxd4 {[%clk 0:03:01]}  a6 {[%clk 0:03:01]} 6. Bxd7+ {[%clk 0:03:02]}  Bxd7 {[%clk 0:03:02]} 7. Nc3 {[%clk 0:03:02]}  Rc8 {[%clk 0:02:59]} 8. a4 {[%clk 0:02:58]}  Nf6 {[%clk 0:02:58]} 9. Bg5 {[%clk 0:02:55]}  h6 {[%clk 0:02:57]} 10. Bxf6 {[%clk 0:02:55]}  gxf6 {[%clk 0:02:58]} 11. O-O {[%clk 0:02:55]}  Rg8 {[%clk 0:02:58]} 12. Kh1 {[%clk 0:02:51]}  Qa5 {[%clk 0:02:56]} 13. Nd5 {[%clk 0:02:48]}  Rxc2 {[%clk 0:02:50]} 14. b4 {[%clk 0:02:38]}  Qd8 {[%clk 0:02:46]} 15. Rac1 {[%clk 0:02:38]}  Rc6 {[%clk 0:02:45]} 16. b5 {[%clk 0:02:35]}  axb5 {[%clk 0:02:44]} 17. axb5 {[%clk 0:02:35]}  Rxc1 {[%clk 0:02:37]} 18. Rxc1 {[%clk 0:02:35]}  Bg7 {[%clk 0:02:38]} 19. Nc7+ {[%clk 0:02:13]}  Kf8 {[%clk 0:02:38]} 20. Qb6 {[%clk 0:02:08]}  Qc8 {[%clk 0:01:57]} 21. Ra1 {[%clk 0:01:39]}  f5 {[%clk 0:01:58]} 22. Ra8 {[%clk 0:01:38]}  fxe4 {[%clk 0:01:58]} 23. Rxc8+ {[%clk 0:01:37]}  Bxc8 {[%clk 0:01:59]} 24. Nd2 {[%clk 0:01:27]}  f5 {[%clk 0:01:52]} 25. Nd5 {[%clk 0:01:22]}  Kf7 {[%clk 0:01:41]} 26. Qc7 {[%clk 0:01:16]}  Re8 {[%clk 0:01:38]} 27. Nc4 {[%clk 0:01:12]}  Kf8 {[%clk 0:01:19]} 28. Ncb6 {[%clk 0:01:10]}  Be6 {[%clk 0:01:19]} 29. Qxb7 {[%clk 0:01:08]}  Kf7 {[%clk 0:01:15]} 30. h3 {[%clk 0:01:01]}  Bd4 {[%clk 0:01:12]} 31. Qc7 {[%clk 0:00:58]}  Bxf2 {[%clk 0:01:09]} 32. Nf4 {[%clk 0:00:50]}  e3 {[%clk 0:00:56]} 33. Qc2 {[%clk 0:00:41]}  Rb8 {[%clk 0:00:46]} 34. Nxe6 {[%clk 0:00:32]}  Kxe6 {[%clk 0:00:46]} 35. Qc4+ {[%clk 0:00:31]}  d5 {[%clk 0:00:43]} 36. Qxd5+ {[%clk 0:00:30]}  Kf6 {[%clk 0:00:42]} 37. Nd7+ {[%clk 0:00:30]}  Kg5 {[%clk 0:00:32]} 38. Nxb8 {[%clk 0:00:28]}  e2 {[%clk 0:00:30]} 39. Qd2+ {[%clk 0:00:27]} 1-0


[Site "https://www.chess.com"]

[Event "Titled Tuesday Blitz August 1 Late 2023"]
[White "Bettalli, Francesco"]
[Black "Rosen, Eric"]
[WhiteFideId "2816453"]
[BlackFideId "2032562"]
[WhiteElo "2509"]
[BlackElo "2666"]
[Result "1-0"]
[Round "6"]
[TimeControl "180+1"]
[Date "2023.08.01"]
[WhiteClock "0:00:31"]
[BlackClock "0:00:02"]
[Board "46"]

1. e4 {[%clk 0:03:00]}  e5 {[%clk 0:03:00]} 2. Nf3 {[%clk 0:03:00]}  Nf6 {[%clk 0:03:01]} 3. Bc4 {[%clk 0:02:59]}  Nc6 {[%clk 0:03:00]} 4. d3 {[%clk 0:02:55]}  Bc5 {[%clk 0:02:58]} 5. O-O {[%clk 0:02:55]}  d6 {[%clk 0:02:58]} 6. c3 {[%clk 0:02:56]}  a6 {[%clk 0:02:58]} 7. h3 {[%clk 0:02:56]}  Ba7 {[%clk 0:02:58]} 8. Bg5 {[%clk 0:02:53]}  h6 {[%clk 0:02:58]} 9. Bh4 {[%clk 0:02:53]}  g5 {[%clk 0:02:58]} 10. Nxg5 {[%clk 0:02:44]}  hxg5 {[%clk 0:02:59]} 11. Bxg5 {[%clk 0:02:45]}  Rg8 {[%clk 0:02:54]} 12. h4 {[%clk 0:02:45]}  Bg4 {[%clk 0:02:37]} 13. Qb3 {[%clk 0:02:44]}  Qd7 {[%clk 0:02:33]} 14. Bxf6 {[%clk 0:02:34]}  Bf3 {[%clk 0:02:33]} 15. Bxf7+ {[%clk 0:02:11]}  Qxf7 {[%clk 0:02:22]} 16. Qxf7+ {[%clk 0:02:10]}  Kxf7 {[%clk 0:02:23]} 17. Bg5 {[%clk 0:02:11]}  Be2 {[%clk 0:02:16]} 18. Re1 {[%clk 0:02:04]}  Bxd3 {[%clk 0:02:16]} 19. Nd2 {[%clk 0:02:04]}  Ke6 {[%clk 0:02:13]} 20. Be3 {[%clk 0:02:02]}  a5 {[%clk 0:02:07]} 21. Nf3 {[%clk 0:01:53]}  Kd7 {[%clk 0:01:59]} 22. Ng5 {[%clk 0:01:50]}  Bc4 {[%clk 0:01:58]} 23. b3 {[%clk 0:01:49]}  Be6 {[%clk 0:01:57]} 24. Rad1 {[%clk 0:01:50]}  Bxe3 {[%clk 0:01:54]} 25. Rxe3 {[%clk 0:01:51]}  a4 {[%clk 0:01:55]} 26. g3 {[%clk 0:01:34]}  axb3 {[%clk 0:01:49]} 27. axb3 {[%clk 0:01:35]}  Bxb3 {[%clk 0:01:46]} 28. Rb1 {[%clk 0:01:35]}  Na5 {[%clk 0:01:44]} 29. f4 {[%clk 0:01:32]}  Nc4 {[%clk 0:01:32]} 30. Re2 {[%clk 0:01:30]}  Na5 {[%clk 0:01:22]} 31. f5 {[%clk 0:01:29]}  Bc4 {[%clk 0:01:14]} 32. Re3 {[%clk 0:01:27]}  b5 {[%clk 0:01:14]} 33. Kf2 {[%clk 0:01:22]}  Nc6 {[%clk 0:01:14]} 34. g4 {[%clk 0:01:20]}  Ra2+ {[%clk 0:01:13]} 35. Kg3 {[%clk 0:01:21]}  b4 {[%clk 0:01:06]} 36. Nh7 {[%clk 0:01:17]}  Ke7 {[%clk 0:01:05]} 37. g5 {[%clk 0:01:14]}  b3 {[%clk 0:01:06]} 38. g6 {[%clk 0:01:11]}  Kd7 {[%clk 0:00:46]} 39. Nf6+ {[%clk 0:01:11]}  Ke7 {[%clk 0:00:41]} 40. Nxg8+ {[%clk 0:01:02]}  Bxg8 {[%clk 0:00:42]} 41. h5 {[%clk 0:00:55]}  Kf6 {[%clk 0:00:29]} 42. h6 {[%clk 0:00:55]}  Na5 {[%clk 0:00:27]} 43. h7 {[%clk 0:00:48]}  Bxh7 {[%clk 0:00:27]} 44. gxh7 {[%clk 0:00:49]}  Kg7 {[%clk 0:00:28]} 45. Rh1 {[%clk 0:00:41]}  Kh8 {[%clk 0:00:28]} 46. f6 {[%clk 0:00:41]}  Nc4 {[%clk 0:00:27]} 47. f7 {[%clk 0:00:34]}  Ra8 {[%clk 0:00:28]} 48. Rf3 {[%clk 0:00:34]}  Rf8 {[%clk 0:00:25]} 49. Rf6 {[%clk 0:00:35]}  Nd2 {[%clk 0:00:10]} 50. Rg6 {[%clk 0:00:32]}  Nxe4+ {[%clk 0:00:10]} 51. Kg2 {[%clk 0:00:33]}  Nf6 {[%clk 0:00:03]} 52. Rg8+ {[%clk 0:00:30]}  Nxg8 {[%clk 0:00:02]} 53. hxg8=R# {[%clk 0:00:31]} 1-0


[Site "https://www.chess.com"]

[Event "Titled Tuesday Blitz August 1 Late 2023"]
[White "Jimenez Jimenez, Leandro"]
[Black "Rastbod, Ali"]
[WhiteFideId "6415253"]
[BlackFideId "12567477"]
[WhiteElo "2509"]
[BlackElo "2661"]
[Result "0-1"]
[Round "6"]
[TimeControl "180+1"]
[Date "2023.08.01"]
[WhiteClock "0:00:00"]
[BlackClock "0:00:25"]
[Board "47"]

1. e4 {[%clk 0:03:00]}  e6 {[%clk 0:02:58]} 2. c4 {[%clk 0:02:58]}  d5 {[%clk 0:02:57]} 3. e5 {[%clk 0:02:53]}  dxc4 {[%clk 0:02:51]} 4. Nf3 {[%clk 0:02:46]}  g5 {[%clk 0:02:30]} 5. Qa4+ {[%clk 0:02:36]}  Nc6 {[%clk 0:02:26]} 6. Qxc4 {[%clk 0:02:36]}  Bg7 {[%clk 0:02:21]} 7. Qe4 {[%clk 0:01:56]}  h5 {[%clk 0:02:13]} 8. h3 {[%clk 0:01:51]}  Qd5 {[%clk 0:01:49]} 9. Nc3 {[%clk 0:01:36]}  Qxe4+ {[%clk 0:01:48]} 10. Nxe4 {[%clk 0:01:37]}  g4 {[%clk 0:01:46]} 11. hxg4 {[%clk 0:01:27]}  hxg4 {[%clk 0:01:47]} 12. Rxh8 {[%clk 0:01:26]}  Bxh8 {[%clk 0:01:47]} 13. Nh2 {[%clk 0:01:25]}  Nxe5 {[%clk 0:01:43]} 14. d4 {[%clk 0:01:22]}  Nc6 {[%clk 0:01:39]} 15. Bf4 {[%clk 0:01:16]}  f5 {[%clk 0:01:26]} 16. Nc3 {[%clk 0:01:01]}  Nxd4 {[%clk 0:01:19]} 17. O-O-O {[%clk 0:01:01]}  Bd7 {[%clk 0:01:11]} 18. Bxc7 {[%clk 0:00:40]}  Rc8 {[%clk 0:01:08]} 19. Bf4 {[%clk 0:00:31]}  e5 {[%clk 0:01:05]} 20. Bg5 {[%clk 0:00:21]}  Bc6 {[%clk 0:00:54]} 21. Kb1 {[%clk 0:00:17]}  Ne7 {[%clk 0:00:43]} 22. Re1 {[%clk 0:00:14]}  b5 {[%clk 0:00:24]} 23. a3 {[%clk 0:00:13]}  a5 {[%clk 0:00:24]} 24. Bc1 {[%clk 0:00:11]}  b4 {[%clk 0:00:24]} 25. axb4 {[%clk 0:00:10]}  axb4 {[%clk 0:00:25]} 26. Ne2 {[%clk 0:00:00]}  Be4+ {[%clk 0:00:25]} 0-1


[Site "https://www.chess.com"]

[Event "Titled Tuesday Blitz August 1 Late 2023"]
[White "Goltsev, Dmitry"]
[Black "Kovalevsky, Stanislav"]
[WhiteFideId "24176710"]
[BlackFideId "13508598"]
[WhiteElo "2657"]
[BlackElo "2509"]
[Result "0-1"]
[Round "6"]
[TimeControl "180+1"]
[Date "2023.08.01"]
[WhiteClock "0:00:02"]
[BlackClock "0:00:04"]
[Board "48"]

1. e4 {[%clk 0:02:49]}  c6 {[%clk 0:02:58]} 2. d4 {[%clk 0:02:48]}  d5 {[%clk 0:02:59]} 3. Nc3 {[%clk 0:02:49]}  dxe4 {[%clk 0:02:59]} 4. Nxe4 {[%clk 0:02:50]}  Nf6 {[%clk 0:02:59]} 5. Qe2 {[%clk 0:02:49]}  Nxe4 {[%clk 0:02:58]} 6. Qxe4 {[%clk 0:02:50]}  Nd7 {[%clk 0:02:57]} 7. Nf3 {[%clk 0:02:50]}  Nf6 {[%clk 0:02:56]} 8. Qd3 {[%clk 0:02:49]}  g6 {[%clk 0:02:54]} 9. c3 {[%clk 0:02:46]}  Bf5 {[%clk 0:02:52]} 10. Qe3 {[%clk 0:02:46]}  Bg7 {[%clk 0:02:50]} 11. Bc4 {[%clk 0:02:46]}  O-O {[%clk 0:02:49]} 12. h3 {[%clk 0:02:46]}  Nd5 {[%clk 0:02:45]} 13. Qe2 {[%clk 0:02:46]}  Re8 {[%clk 0:02:41]} 14. g4 {[%clk 0:02:45]}  Bc8 {[%clk 0:02:30]} 15. Bg5 {[%clk 0:02:41]}  h6 {[%clk 0:02:24]} 16. Bd2 {[%clk 0:02:40]}  b5 {[%clk 0:02:19]} 17. Bb3 {[%clk 0:02:39]}  a5 {[%clk 0:02:17]} 18. a3 {[%clk 0:02:39]}  Ba6 {[%clk 0:02:08]} 19. Qe4 {[%clk 0:02:34]}  Qd7 {[%clk 0:01:33]} 20. O-O-O {[%clk 0:02:23]}  b4 {[%clk 0:01:27]} 21. cxb4 {[%clk 0:02:18]}  axb4 {[%clk 0:01:25]} 22. a4 {[%clk 0:02:18]}  Nf6 {[%clk 0:01:16]} 23. Qxg6 {[%clk 0:02:17]}  e6 {[%clk 0:01:09]} 24. Qc2 {[%clk 0:02:16]}  c5 {[%clk 0:00:50]} 25. g5 {[%clk 0:01:41]}  hxg5 {[%clk 0:00:49]} 26. Bxg5 {[%clk 0:00:14]}  c4 {[%clk 0:00:47]} 27. Rdg1 {[%clk 0:00:11]}  cxb3 {[%clk 0:00:33]} 28. Bxf6 {[%clk 0:00:10]}  Rec8 {[%clk 0:00:25]} 29. Rxg7+ {[%clk 0:00:09]}  Kf8 {[%clk 0:00:25]} 30. Rhg1 {[%clk 0:00:04]}  Rxc2+ {[%clk 0:00:19]} 31. Kb1 {[%clk 0:00:05]}  Rc1+ {[%clk 0:00:17]} 32. Kxc1 {[%clk 0:00:05]}  Qc6+ {[%clk 0:00:16]} 33. Kd2 {[%clk 0:00:04]}  Qc2+ {[%clk 0:00:11]} 34. Ke3 {[%clk 0:00:05]}  Qd3+ {[%clk 0:00:09]} 35. Kf4 {[%clk 0:00:05]}  Qf5+ {[%clk 0:00:09]} 36. Ke3 {[%clk 0:00:05]}  Qxf6 {[%clk 0:00:08]} 37. Rg8+ {[%clk 0:00:06]}  Ke7 {[%clk 0:00:09]} 38. Rxa8 {[%clk 0:00:06]}  Bb7 {[%clk 0:00:09]} 39. Ne5 {[%clk 0:00:02]}  Bxa8 {[%clk 0:00:08]} 40. Rg8 {[%clk 0:00:03]}  Qh6+ {[%clk 0:00:07]} 41. Ke2 {[%clk 0:00:01]}  Qh5+ {[%clk 0:00:07]} 42. f3 {[%clk 0:00:02]}  Bd5 {[%clk 0:00:04]} 43. Rc8 {[%clk 0:00:02]}  Kf6 {[%clk 0:00:03]} 44. Rc7 {[%clk 0:00:03]}  Qxh3 {[%clk 0:00:03]} 45. Rxf7+ {[%clk 0:00:03]}  Kg5 {[%clk 0:00:04]} 46. f4+ {[%clk 0:00:04]}  Kh6 {[%clk 0:00:03]} 47. a5 {[%clk 0:00:02]}  Qg2+ {[%clk 0:00:03]} 48. Ke1 {[%clk 0:00:02]}  Qe4+ {[%clk 0:00:04]} 49. Kf2 {[%clk 0:00:02]}  Qxd4+ {[%clk 0:00:04]} 50. Kg3 {[%clk 0:00:03]}  Qxb2 {[%clk 0:00:04]} 51. Ng4+ {[%clk 0:00:03]}  Kg6 {[%clk 0:00:05]} 52. Ne5+ {[%clk 0:00:03]}  Kh6 {[%clk 0:00:05]} 53. Ng4+ {[%clk 0:00:02]}  Kh5 {[%clk 0:00:05]} 54. Ne5 {[%clk 0:00:02]}  Qc3+ {[%clk 0:00:05]} 55. Kf2 {[%clk 0:00:03]}  Qd4+ {[%clk 0:00:04]} 56. Kg3 {[%clk 0:00:03]}  Qe3+ {[%clk 0:00:05]} 57. Kh2 {[%clk 0:00:02]}  Qe2+ {[%clk 0:00:03]} 58. Kh3 {[%clk 0:00:02]}  Qg2# {[%clk 0:00:04]} 0-1


[Site "https://www.chess.com"]

[Event "Titled Tuesday Blitz August 1 Late 2023"]
[White "Jovic, Stanoje"]
[Black "Jakubowski, Krzysztof"]
[WhiteFideId "905020"]
[BlackFideId "1112848"]
[WhiteElo "2506"]
[BlackElo "2648"]
[Result "0-1"]
[Round "6"]
[TimeControl "180+1"]
[Date "2023.08.01"]
[WhiteClock "0:00:00"]
[BlackClock "0:00:23"]
[Board "50"]

1. c4 {[%clk 0:03:00]}  Nf6 {[%clk 0:02:56]} 2. g3 {[%clk 0:03:00]}  c6 {[%clk 0:02:54]} 3. Bg2 {[%clk 0:02:59]}  d5 {[%clk 0:02:54]} 4. cxd5 {[%clk 0:02:59]}  cxd5 {[%clk 0:02:54]} 5. Nf3 {[%clk 0:02:59]}  Nc6 {[%clk 0:02:53]} 6. d4 {[%clk 0:02:59]}  Bf5 {[%clk 0:02:52]} 7. O-O {[%clk 0:02:55]}  e6 {[%clk 0:02:51]} 8. Nc3 {[%clk 0:02:54]}  Be7 {[%clk 0:02:50]} 9. Bf4 {[%clk 0:02:46]}  O-O {[%clk 0:02:49]} 10. Rc1 {[%clk 0:02:46]}  Rc8 {[%clk 0:02:47]} 11. Ne5 {[%clk 0:02:43]}  Nh5 {[%clk 0:02:14]} 12. e4 {[%clk 0:02:37]}  Nxf4 {[%clk 0:02:09]} 13. gxf4 {[%clk 0:02:19]}  dxe4 {[%clk 0:02:05]} 14. Nxc6 {[%clk 0:02:14]}  Rxc6 {[%clk 0:02:03]} 15. Qd2 {[%clk 0:01:54]}  Bb4 {[%clk 0:01:45]} 16. Qe3 {[%clk 0:01:52]}  Bxc3 {[%clk 0:01:40]} 17. bxc3 {[%clk 0:01:50]}  Qd5 {[%clk 0:01:39]} 18. Rfe1 {[%clk 0:01:40]}  Rfc8 {[%clk 0:01:37]} 19. Bxe4 {[%clk 0:01:37]}  Bxe4 {[%clk 0:01:34]} 20. Qxe4 {[%clk 0:01:37]}  Qxe4 {[%clk 0:01:15]} 21. Rxe4 {[%clk 0:01:36]}  Rxc3 {[%clk 0:01:14]} 22. Rxc3 {[%clk 0:01:36]}  Rxc3 {[%clk 0:01:15]} 23. d5 {[%clk 0:01:36]}  Ra3 {[%clk 0:01:06]} 24. dxe6 {[%clk 0:01:35]}  fxe6 {[%clk 0:01:06]} 25. Rxe6 {[%clk 0:01:34]}  Rxa2 {[%clk 0:01:05]} 26. Re8+ {[%clk 0:01:14]}  Kf7 {[%clk 0:01:04]} 27. Rc8 {[%clk 0:01:14]}  Rb2 {[%clk 0:01:03]} 28. Kg2 {[%clk 0:01:10]}  a5 {[%clk 0:01:01]} 29. Ra8 {[%clk 0:01:09]}  b6 {[%clk 0:01:00]} 30. Kg3 {[%clk 0:01:09]}  h5 {[%clk 0:00:45]} 31. f5 {[%clk 0:00:47]}  Kf6 {[%clk 0:00:44]} 32. Rf8+ {[%clk 0:00:46]}  Ke7 {[%clk 0:00:39]} 33. Rg8 {[%clk 0:00:37]}  Kf7 {[%clk 0:00:38]} 34. Rb8 {[%clk 0:00:36]}  a4 {[%clk 0:00:37]} 35. Ra8 {[%clk 0:00:33]}  b5 {[%clk 0:00:36]} 36. f3 {[%clk 0:00:32]}  Rb4 {[%clk 0:00:35]} 37. Ra6 {[%clk 0:00:24]}  h4+ {[%clk 0:00:31]} 38. Kh3 {[%clk 0:00:22]}  Rf4 {[%clk 0:00:32]} 39. Kg2 {[%clk 0:00:19]}  Rxf5 {[%clk 0:00:31]} 40. Kf2 {[%clk 0:00:19]}  Rc5 {[%clk 0:00:30]} 41. Ke3 {[%clk 0:00:18]}  Rc4 {[%clk 0:00:28]} 42. f4 {[%clk 0:00:16]}  Rc2 {[%clk 0:00:26]} 43. h3 {[%clk 0:00:14]}  Rc3+ {[%clk 0:00:26]} 44. Ke4 {[%clk 0:00:14]}  Rxh3 {[%clk 0:00:27]} 45. Kf5 {[%clk 0:00:14]}  Rg3 {[%clk 0:00:24]} 46. Rb6 {[%clk 0:00:13]}  a3 {[%clk 0:00:23]} 47. Rxb5 {[%clk 0:00:12]}  h3 {[%clk 0:00:23]} 48. Rb7+ {[%clk 0:00:00]}  Kg8 {[%clk 0:00:23]} 0-1


[Site "https://www.chess.com"]

[Event "Titled Tuesday Blitz August 1 Late 2023"]
[White "Araujo Sanchez, Josue"]
[Black "Michalczak, Thomas"]
[WhiteFideId "6416896"]
[BlackFideId "4622634"]
[WhiteElo "2631"]
[BlackElo "2504"]
[Result "0-1"]
[Round "6"]
[TimeControl "180+1"]
[Date "2023.08.01"]
[WhiteClock "0:00:00"]
[BlackClock "0:00:04"]
[Board "52"]

1. b3 {[%clk 0:03:00]}  d5 {[%clk 0:02:59]} 2. Bb2 {[%clk 0:02:57]}  Bg4 {[%clk 0:02:59]} 3. g3 {[%clk 0:02:56]}  Nf6 {[%clk 0:02:57]} 4. Bg2 {[%clk 0:02:57]}  e6 {[%clk 0:02:58]} 5. d3 {[%clk 0:02:57]}  c6 {[%clk 0:02:56]} 6. Nd2 {[%clk 0:02:57]}  Bd6 {[%clk 0:02:56]} 7. Ngf3 {[%clk 0:02:57]}  Nbd7 {[%clk 0:02:55]} 8. O-O {[%clk 0:02:57]}  O-O {[%clk 0:02:55]} 9. c4 {[%clk 0:02:58]}  a5 {[%clk 0:02:54]} 10. a3 {[%clk 0:02:57]}  h6 {[%clk 0:02:54]} 11. Ra2 {[%clk 0:02:57]}  Re8 {[%clk 0:02:54]} 12. Nh4 {[%clk 0:02:53]}  e5 {[%clk 0:02:48]} 13. h3 {[%clk 0:02:51]}  Bh5 {[%clk 0:02:48]} 14. g4 {[%clk 0:02:46]}  Bg6 {[%clk 0:02:48]} 15. Nxg6 {[%clk 0:02:44]}  fxg6 {[%clk 0:02:48]} 16. e4 {[%clk 0:02:41]}  d4 {[%clk 0:02:47]} 17. Nf3 {[%clk 0:02:36]}  g5 {[%clk 0:02:45]} 18. Bc1 {[%clk 0:02:34]}  Nf8 {[%clk 0:02:44]} 19. Bd2 {[%clk 0:02:33]}  Qe7 {[%clk 0:02:41]} 20. Qc1 {[%clk 0:02:31]}  Ng6 {[%clk 0:02:37]} 21. Qb2 {[%clk 0:02:31]}  b5 {[%clk 0:02:28]} 22. cxb5 {[%clk 0:02:28]}  cxb5 {[%clk 0:02:29]} 23. a4 {[%clk 0:02:28]}  b4 {[%clk 0:02:29]} 24. Rc1 {[%clk 0:02:27]}  Rac8 {[%clk 0:02:24]} 25. Rxc8 {[%clk 0:02:27]}  Rxc8 {[%clk 0:02:24]} 26. Ra1 {[%clk 0:02:27]}  Rc3 {[%clk 0:02:20]} 27. Bxc3 {[%clk 0:02:23]}  bxc3 {[%clk 0:02:21]} 28. Qa2 {[%clk 0:02:21]}  Nf4 {[%clk 0:02:19]} 29. b4+ {[%clk 0:02:20]}  Kh7 {[%clk 0:02:18]} 30. bxa5 {[%clk 0:02:18]}  Nxd3 {[%clk 0:02:14]} 31. a6 {[%clk 0:02:16]}  Nf4 {[%clk 0:02:09]} 32. Qc4 {[%clk 0:02:13]}  Ba3 {[%clk 0:02:01]} 33. Rb1 {[%clk 0:02:11]}  Bb2 {[%clk 0:02:01]} 34. Ne1 {[%clk 0:02:06]}  Qd7 {[%clk 0:01:49]} 35. Bf1 {[%clk 0:02:05]}  Kh8 {[%clk 0:01:24]} 36. f3 {[%clk 0:02:01]}  Kh7 {[%clk 0:01:19]} 37. Nd3 {[%clk 0:02:01]}  Nxd3 {[%clk 0:01:11]} 38. Bxd3 {[%clk 0:02:02]}  Ne8 {[%clk 0:01:11]} 39. Qd5 {[%clk 0:01:57]}  Qc7 {[%clk 0:01:04]} 40. Qb7 {[%clk 0:01:37]}  c2 {[%clk 0:01:03]} 41. Qxb2 {[%clk 0:01:06]}  cxb1=Q+ {[%clk 0:01:03]} 42. Qxb1 {[%clk 0:01:07]}  Qa5 {[%clk 0:01:03]} 43. Qb5 {[%clk 0:00:59]}  Qe1+ {[%clk 0:01:03]} 44. Kg2 {[%clk 0:00:58]}  Nd6 {[%clk 0:00:57]} 45. Qb2 {[%clk 0:00:53]}  Qa5 {[%clk 0:00:47]} 46. Kf2 {[%clk 0:00:47]}  Nc8 {[%clk 0:00:43]} 47. Bb5 {[%clk 0:00:40]}  Nb6 {[%clk 0:00:40]} 48. Qc2 {[%clk 0:00:35]}  Qb4 {[%clk 0:00:13]} 49. Ke2 {[%clk 0:00:33]}  Qa5 {[%clk 0:00:12]} 50. Qb3 {[%clk 0:00:26]}  Nc8 {[%clk 0:00:09]} 51. Kd3 {[%clk 0:00:15]}  Nd6 {[%clk 0:00:09]} 52. Qd5 {[%clk 0:00:07]}  Qc3+ {[%clk 0:00:07]} 53. Ke2 {[%clk 0:00:07]}  Qe3+ {[%clk 0:00:07]} 54. Kd1 {[%clk 0:00:08]}  Qxf3+ {[%clk 0:00:08]} 55. Be2 {[%clk 0:00:06]}  Qa3 {[%clk 0:00:07]} 56. Qxe5 {[%clk 0:00:06]}  Qa1+ {[%clk 0:00:06]} 57. Kd2 {[%clk 0:00:06]}  Qc3+ {[%clk 0:00:06]} 58. Kd1 {[%clk 0:00:06]}  Qa1+ {[%clk 0:00:05]} 59. Kc2 {[%clk 0:00:06]}  d3+ {[%clk 0:00:05]} 60. Bxd3 {[%clk 0:00:02]}  Qxe5 {[%clk 0:00:05]} 61. a7 {[%clk 0:00:03]}  Qc5+ {[%clk 0:00:03]} 62. Kb3 {[%clk 0:00:03]}  Qxa7 {[%clk 0:00:04]} 63. e5+ {[%clk 0:00:04]}  g6 {[%clk 0:00:04]} 64. exd6 {[%clk 0:00:04]}  Qb6+ {[%clk 0:00:04]} 65. Bb5 {[%clk 0:00:04]}  Qxd6 {[%clk 0:00:05]} 66. a5 {[%clk 0:00:03]}  Qc5 {[%clk 0:00:05]} 67. Ka4 {[%clk 0:00:04]}  Qc2+ {[%clk 0:00:05]} 68. Kb4 {[%clk 0:00:04]}  Qb2+ {[%clk 0:00:05]} 69. Kc5 {[%clk 0:00:04]}  Qc3+ {[%clk 0:00:05]} 70. Kb6 {[%clk 0:00:05]}  Qd4+ {[%clk 0:00:05]} 71. Kb7 {[%clk 0:00:05]}  Qb4 {[%clk 0:00:05]} 72. Kb6 {[%clk 0:00:05]}  Qd4+ {[%clk 0:00:03]} 73. Kb7 {[%clk 0:00:05]}  Qe4+ {[%clk 0:00:03]} 74. Bc6 {[%clk 0:00:04]}  Qb4+ {[%clk 0:00:04]} 75. Ka6 {[%clk 0:00:02]}  Qc5 {[%clk 0:00:04]} 76. Bb5 {[%clk 0:00:01]}  Kg7 {[%clk 0:00:04]} 77. Bd7 {[%clk 0:00:00]}  Kf6 {[%clk 0:00:04]} 0-1


[Site "https://www.chess.com"]